[Event "5th Baskent University Open 2022"]
[Site "Ankara"]
[Date "2022.07.05"]
[Round "6.4"]
[White "Eynullayev, Atilla"]
[Black "Ozer, Omer Faruk"]
[Result "1-0"]
[ECO "A50"]
[WhiteElo "2333"]
[BlackElo "2317"]
[Annotator "TA"]
[PlyCount "87"]
[EventDate "2022.07.02"]
[EventType "swiss"]
[EventCountry "TUR"]
[SourceTitle "playchess.com"]
[Source "ChessBase"]
[SourceQuality "1"]
[TimeControl "5400+30"]

{[%evp 9,87,58,60,65,66,60,57,36,31,39,72,24,24,13,27,17,18,0,8,7,0,0,7,0,0,-8,-4,-134,-134,-134,-123,-110,-60,-75,-7,-43,-55,-55,-53,-52,-56,-112,-87,-72,-103,-149,-75,-68,-58,-84,0,0,0,0,0,0,0,0,0,0,0,0,0,0,0,0,2,0,8,0,0,0,7336,6559,6103,5752,5565,5326,5093,3064]} 1. d4 {[%emt 0:01:00]} Nf6 {[%emt 0:01:00]} 2. c4 {[%emt 0:00:00]} b6 {[%emt 0:00:30]} 3. f3 {[%emt 0:00:00]} c5 {[%emt 0:09:30]} 4. d5 {[%emt 0:00:30]} e6 {[%emt 0:00:30]} 5. e4 {[%emt 0:02:30]} exd5 {[%emt 0:00:30]} 6. cxd5 {[%emt 0:01:30] A50: Queen's Fianchetto Defence (1 d4 Nf6 2 c4 b6).} d6 {[%emt 0:00:30]} 7. Nc3 {[%emt 0:00:30]} g6 {[%emt 0:03:30]} 8. Be3 {[%emt 0:04:30] White is slightly better.} Bg7 {[%emt 0:07:30]} 9. Qd2 {[%emt 0:04:30] [#]} h5 $146 {[%emt 0:02:30]} ({Predecessor:} 9... O-O 10. Bc4 Nbd7 11. Nge2 Ne5 12. Bb5 a6 13. Bd3 Nxd3+ 14. Qxd3 b5 15. a3 Nd7 {0-1 (39) Deobrochinski,V (1197)-Da Costa,E Sao Bento do Sul 2019}) 10. h4 {[%emt 0:04:30]} (10. Bb5+ $16 Kf8 11. Bg5) 10... a6 $11 {[%emt 0:08:30]} 11. a4 {[%emt 0:01:30]} Nbd7 {[%emt 0:00:00][%cal Bb8d7,Bd7e5,Be5g4][%mdl 32]} 12. Nh3 {[%emt 0:03:30]} Ne5 {[%emt 0:02:00]} 13. Be2 {[%emt 0:05:30]} Bxh3 {[%emt 0:07:30]} 14. Rxh3 {[%emt 0:06:30]} c4 {[%emt 0:03:30]} 15. Bd4 {[%emt 0:23:30]} Nfd7 {[%emt 0:13:30]} 16. f4 {[%emt 0:08:30]} Bh6 {[%emt 0:01:30]} 17. Be3 {[%emt 0:07:30]} Ng4 {[%emt 0:02:30]} 18. Qd4 {[%emt 0:04:21]} (18. Bxg4 $11 {remains equal.} hxg4 19. Rh1) 18... O-O $17 {[%emt 0:01:30]} 19. Bxg4 {[%emt 0:01:14]} (19. Bxc4 Bg7 20. Qd2 Re8 $15) 19... hxg4 {[%emt 0:00:30]} 20. Rh1 {[%emt 0:00:00]} Nc5 {[%emt 0:08:30]} (20... b5 $17 {And now ...Bg7 would win.} 21. h5 (21. axb5 Bg7 $17) 21... Bg7) 21. Qxc4 $15 {[%emt 0:02:12]} Re8 {[%emt 0:04:30]} (21... b5 $17 22. Qe2 (22. axb5 axb5 23. Rxa8 Qxa8 $17) 22... b4) 22. Bxc5 {[%emt 0:02:36]} (22. h5 $5 {[%cal Rh5g6]} b5 23. Qe2 (23. axb5 axb5 24. Rxa8 Qxa8 $11) 23... Nxe4 24. Nxe4 Rxe4 25. hxg6 Bxf4 26. gxf7+ Kxf7 27. Rf1 (27. Qxg4 $2 Qg5 $19) 27... Qh4+ 28. Kd1 $17) 22... bxc5 {[%emt 0:00:00]} 23. g3 {[%emt 0:00:00]} Rb8 {[%emt 0:07:25][%mdl 1024] Black has compensation.} 24. O-O-O {[%emt 0:00:29]} ({Avoid the trap} 24. Qxa6 $2 Rxb2 25. O-O-O Qb8 $19) 24... Qa5 {[%emt 0:04:35] Strongly threatening ...Bg7.} 25. Rhe1 {[%emt 0:02:17]} (25. Rd2 $15) 25... Rb4 $17 {[%emt 0:00:57]} 26. Qd3 {[%emt 0:00:29]} Reb8 {[%emt 0:02:03]} 27. Rd2 {[%emt 0:01:38]} ({Better is} 27. Re2) 27... Bg7 {[%emt 0:00:42]} ({Black should play} 27... Qb6 {[%cal Rb4b2]} 28. Qc2 Bg7) 28. e5 {[%emt 0:00:47]} dxe5 $1 {[%emt 0:00:27]} 29. Rxe5 {[%emt 0:00:15]} ({But not} 29. fxe5 $2 Bh6 30. Re3 Qb6 $19) 29... Rd4 {[%emt 0:04:21]} (29... Bxe5 $17 30. fxe5 Qb6) 30. Qe3 $11 {[%emt 0:01:32]} Bxe5 {[%emt 0:00:30]} 31. fxe5 {[%emt 0:00:00]} Rxd2 {[%emt 0:01:31]} 32. Qxd2 {[%emt 0:00:03][%mdl 4096] Endgame KQR-KQN} Qb4 {[%emt 0:00:02]} 33. h5 $1 {[%emt 0:01:45]} Qd4 {[%emt 0:00:56] White must now prevent ...Qxd2+.} 34. hxg6 $1 {[%emt 0:01:52] aiming for Qxd4.} Qxe5 {[%emt 0:01:02]} 35. Qh6 {[%emt 0:00:50] White threatens Qh7+ and mate.} fxg6 {[%emt 0:01:12]} 36. Qxg6+ {[%emt 0:00:30]} Qg7 {[%emt 0:00:14]} 37. Qxa6 {[%emt 0:01:45]} Re8 {[%emt 0:01:36] Inhibits Qe6+.} 38. Qc6 {[%emt 0:00:48]} Re1+ {[%emt 0:01:28]} 39. Kc2 {[%emt 0:00:30]} Qd4 {[%emt 0:00:16]} 40. d6 {[%emt 0:04:42][%cal Bd5d6,Bd6d7][%mdl 32] Qd5+ is the strong threat. Chess con chili.} c4 $2 {[%emt 0:00:29][%mdl 8192]} (40... Kf8 $11) 41. Qd5+ $18 {[%emt 0:00:14] White is clearly winning.} Qxd5 {[%emt 0:00:49]} 42. Nxd5 {[%emt 0:00:30] Intending d7 and mate.} Re6 {[%emt 0:00:30]} 43. d7 {[%emt 0:00:30]} Rd6 {[%emt 0:00:00] [#]} 44. Nb6 $1 {[%emt 0:01:12][%mdl 512] Weighted Error Value: White=0.16 (very precise) /Black=0.11 (very precise)} 1-0

[Event "5th Baskent University Open 2022"]
[Site "Ankara"]
[Date "2022.07.05"]
[Round "6.5"]
[White "Ozsoy, Alimert"]
[Black "Koksal, Ege"]
[Result "1-0"]
[ECO "C60"]
[WhiteElo "2263"]
[BlackElo "2356"]
[Annotator "TA"]
[PlyCount "99"]
[EventDate "2022.07.02"]
[EventType "swiss"]
[EventCountry "TUR"]
[SourceTitle "playchess.com"]
[Source "ChessBase"]
[SourceQuality "1"]
[TimeControl "5400+30"]

{[%evp 14,99,44,29,27,43,38,22,35,24,35,0,0,0,-4,-14,-14,-39,0,0,0,0,0,-12,-7,-19,0,0,0,-15,-15,-15,-13,-20,32,28,30,41,31,11,168,172,163,166,207,207,203,192,196,125,133,125,140,149,208,208,199,199,206,170,185,179,183,0,179,153,214,222,211,148,159,159,159,159,159,159,159,159,257,257,328,328,328,328,270,246,975,928]} 1. e4 {[%emt 0:04:00]} e5 {[%emt 0:01:00]} 2. Nf3 {[%emt 0:00:30]} Nc6 {[%emt 0:00:30]} 3. Bb5 {[%emt 0:00:30]} Nge7 {[%emt 0:00:00]} 4. O-O {[%emt 0:00:30]} g6 {[%emt 0:00:00]} 5. c3 {[%emt 0:00:30]} a6 {[%emt 0:00:30]} 6. Ba4 {[%emt 0:02:30]} Bg7 {[%emt 0:00:00]} 7. d4 {[%emt 0:00:30]} exd4 {[%emt 0:00:00]} 8. cxd4 {[%emt 0:00:30]} b5 {[%emt 0:00:00] C60: Ruy Lopez: Unusual Black 3rd moves and 3...g6.} 9. Bc2 {[%emt 0:00:30]} d6 {[%emt 0:00:00]} 10. h3 {[%emt 0:00:30] Against Bg4} O-O {[%emt 0:00:00] The position is equal.} 11. a3 {[%emt 0:00:30]} Na5 {[%emt 0:02:00]} 12. Nc3 {[%emt 0:01:30] [#]} c5 $146 {[%emt 0:01:30]} ({Predecessor:} 12... h6 13. b3 c5 14. Be3 c4 15. b4 Nac6 16. Qd2 Kh7 17. Rfb1 d5 18. a4 Rb8 19. axb5 axb5 20. exd5 Nxd5 {½-½ (94) Zinski,M (2067)-Kovanova,B (2325) Chess.com INT 2021}) 13. dxc5 {[%emt 0:01:30]} dxc5 {[%emt 0:00:30]} 14. Qxd8 {[%emt 0:00:30]} Rxd8 {[%emt 0:00:30]} 15. Be3 {[%emt 0:00:30]} Nb7 {[%emt 0:00:30]} 16. Bb3 {[%emt 0:09:30]} c4 {[%emt 0:20:30]} 17. Bc2 {[%emt 0:00:30]} Be6 {[%emt 0:00:30]} 18. Rfd1 {[%emt 0:02:30]} Nc6 {[%emt 0:00:30]} 19. Bb6 {[%emt 0:07:30]} Rxd1+ {[%emt 0:02:30]} 20. Rxd1 {[%emt 0:00:30]} h6 {[%emt 0:09:30]} 21. e5 {[%emt 0:03:30]} Nxe5 {[%emt 0:22:30]} 22. Nxe5 {[%emt 0:05:30]} Bxe5 {[%emt 0:00:30]} 23. Be4 {[%emt 0:00:30] [#]} Kg7 {[%emt 0:07:30]} 24. f4 $14 {[%emt 0:09:30]} (24. Bxb7 Rb8 25. f4 Bf6 $17) 24... Bf6 {[%emt 0:00:00][%cal Oa8c8]} 25. Be3 $36 {[%emt 0:01:30][%mdl 2048] Black is under pressure.} ({Much worse is} 25. Bxb7 Rb8 26. Ne4 Rxb7 27. Nxf6 Rxb6 28. Ne8+ Kf8 $17) 25... Rb8 {[%emt 0:02:00]} 26. g4 $1 {[%emt 0:07:30]} b4 $2 {[%emt 0:24:06]} (26... Kh7 $11) 27. axb4 $18 {[%emt 0:00:30]} Nd8 {[%emt 0:00:00]} 28. Bc5 {[%emt 0:02:30]} Bc8 {[%emt 0:04:52]} 29. Ba7 {[%emt 0:02:30]} Rxb4 {[%emt 0:00:33]} 30. Nd5 {[%emt 0:00:30]} Nc6 {[%emt 0:01:38] [#]} 31. Nxb4 {[%emt 0:00:30]} ({White should try} 31. Bf2 $1 $18) 31... Nxa7 $16 {[%emt 0:00:00]} 32. Rc1 {[%emt 0:02:30] White is more active.} a5 {[%emt 0:01:43]} 33. Nd5 {[%emt 0:01:30]} Bd4+ {[%emt 0:00:00]} (33... Bxb2 $16 34. Rxc4 Bb7) 34. Kg2 $18 {[%emt 0:01:30]} Bxb2 {[%emt 0:00:47]} 35. Rxc4 {[%emt 0:00:30]} Be6 {[%emt 0:00:19]} 36. Ra4 {[%emt 0:01:30]} Nc6 {[%emt 0:00:52]} 37. Nb6 {[%emt 0:01:30]} Bd4 {[%emt 0:00:19]} 38. Nd5 {[%emt 0:01:30] Black must now prevent Rc4.} ({Don't do} 38. Bxc6 $6 Bxb6 39. Kf3 f5 $16) 38... Bb2 $1 {[%emt 0:00:38] A strong pair of Bishops.} 39. Kg3 {[%emt 0:00:30]} Bd7 {[%emt 0:00:38]} (39... g5 $16 {might work better.} 40. Kg2 Bd7) 40. Nb6 {[%emt 0:01:30]} Be8 {[%emt 0:00:00]} 41. Bg2 {[%emt 0:00:30]} Kf8 {[%emt 0:01:00]} 42. Bxc6 {[%emt 0:02:30]} Bxc6 {[%emt 0:00:30]} 43. Rxa5 $16 {[%emt 0:00:30][%mdl 4096] Endgame KRN-KB} Bc3 {[%emt 0:00:00]} 44. Rc5 {[%emt 0:00:00][%csl LRc3,LRc6]} Be1+ {[%emt 0:00:00]} 45. Kh2 {[%emt 0:00:00]} Be4 {[%emt 0:01:01]} (45... Bf3 $16 46. Nd7+ Kg7) 46. Nd7+ $18 {[%emt 0:01:30]} Kg7 {[%emt 0:00:00]} 47. Re5 {[%emt 0:01:30]} f5 {[%emt 0:00:00]} 48. Re7+ {[%emt 0:00:30]} ({Weaker is} 48. Nc5 Bd2 49. Kg1 Bf3 $16) 48... Kg8 {[%emt 0:00:30]} 49. Ne5 {[%emt 0:00:30]} fxg4 $2 {[%emt 0:00:30]} (49... Bb4) 50. Nxg4 {[%emt 0:00:30] Weighted Error Value: White=0.14 (very precise) /Black=0.22 (precise)} 1-0

[Event "5th Baskent University Open 2022"]
[Site "Ankara"]
[Date "2022.07.05"]
[Round "6.6"]
[White "Dedebas, Emre Emin"]
[Black "Tarhan, Adar"]
[Result "1/2-1/2"]
[ECO "A11"]
[WhiteElo "2321"]
[BlackElo "2201"]
[Annotator "TA"]
[PlyCount "45"]
[EventDate "2022.07.02"]
[EventType "swiss"]
[EventCountry "TUR"]
[SourceTitle "playchess.com"]
[Source "ChessBase"]
[SourceQuality "1"]
[TimeControl "5400+30"]

{[%evp 11,45,22,33,26,46,46,66,33,60,60,64,54,126,122,130,124,131,127,113,110,90,67,69,67,111,111,125,127,135,50,97,43,68,3,8,0]} 1. Nf3 {[%emt 0:05:00]} d5 {[%emt 0:01:00]} 2. g3 {[%emt 0:00:30]} Nf6 {[%emt 0:00:30]} 3. Bg2 {[%emt 0:00:30]} Bf5 {[%emt 0:00:00]} 4. c4 {[%emt 0:00:30]} c6 {[%emt 0:00:00]} 5. O-O {[%emt 0:00:00]} e6 {[%emt 0:00:30]} 6. cxd5 {[%emt 0:00:00]} cxd5 {[%emt 0:06:30]} 7. Qb3 {[%emt 0:01:30] A11: English Opening: 1...c6.} Qd7 {[%emt 0:04:30]} 8. Ne5 {[%emt 0:13:30]} Qc7 {[%emt 0:00:30]} 9. d4 {[%emt 0:03:30] White is slightly better.} (9. d3 $5) 9... Bd6 {[%emt 0:00:30]} 10. Nc3 {[%emt 0:09:30] [#] Strongly threatening Nb5.} a6 {[%emt 0:00:00] Inhibits Nb5.} 11. Qa4+ {[%emt 0:06:30]} Nbd7 {[%emt 0:05:00] [#]} (11... Nfd7 $1 $14) 12. Nb5 $146 {[%emt 0:04:30][%mdl 2048] White is in control.} ({Predecessor:} 12. Nxd7 Qxd7 13. Bg5 Qxa4 14. Nxa4 b5 15. Nc5 Bxc5 16. Bxf6 gxf6 17. dxc5 Kd7 18. b4 {0-1 (34) Dejmek,M (2018)-Chen,M (1997) Chess.com INT 2021}) 12... Qb6 {[%emt 0:00:00]} 13. Nxd6+ {[%emt 0:00:30]} Qxd6 {[%emt 0:00:00]} 14. Bf4 {[%emt 0:05:30] White is more active.} b5 {[%emt 0:09:30] [#]} 15. Nxd7 $1 {[%emt 0:12:30]} Qxd7 {[%emt 0:02:30]} 16. Qa5 {[%emt 0:01:30]} O-O {[%emt 0:00:30]} 17. Rac1 {[%emt 0:01:30]} Rfc8 {[%emt 0:01:30]} 18. Rxc8+ {[%emt 0:02:30]} Rxc8 {[%emt 0:00:30]} 19. Qxa6 {[%emt 0:00:30]} h6 {[%emt 0:00:30]} 20. b3 {[%emt 0:18:02]} ({White should play} 20. f3 $16) 20... Rc2 {[%emt 0:02:30]} (20... g5 $14 21. Bd6 Rc6 22. Qa8+ Rc8) 21. Bf3 {[%emt 0:00:42]} (21. f3 $16) 21... Ne4 {[%emt 0:05:30]} 22. a4 {[%emt 0:02:31]} ({White should try} 22. g4 $14 Bg6 23. Kg2) 22... bxa4 $11 {[%emt 0:01:30]} 23. Qxa4 {[%emt 0:03:42] Weighted Error Value: White=0.22 (precise) /Black=0.21 (precise)} 1/2-1/2

[Event "5th Baskent University Open 2022"]
[Site "Ankara"]
[Date "2022.07.05"]
[Round "6.8"]
[White "Aliyev, Elnur"]
[Black "Sevgi, Volkan"]
[Result "1/2-1/2"]
[ECO "E00"]
[WhiteElo "2142"]
[BlackElo "2305"]
[Annotator "TA"]
[PlyCount "77"]
[EventDate "2022.07.02"]
[EventType "swiss"]
[EventCountry "TUR"]
[SourceTitle "playchess.com"]
[Source "ChessBase"]
[SourceQuality "1"]
[TimeControl "5400+30"]

{[%evp 11,77,2,44,20,19,15,14,20,45,28,79,60,53,41,52,56,29,40,55,35,57,28,45,49,52,12,10,10,50,32,34,34,66,0,0,0,0,0,0,0,5,2,0,0,0,0,0,0,0,0,0,0,0,0,0,0,0,0,0,0,0,0,0,0,0,0,0,0]} 1. d4 {[%emt 0:01:00]} Nf6 {[%emt 0:01:00]} 2. c4 {[%emt 0:00:00]} e6 {[%emt 0:00:00]} 3. Nc3 {[%emt 0:01:00]} Bb4 {[%emt 0:00:00]} 4. g3 {[%emt 0:08:30]} O-O {[%emt 0:02:30]} 5. Bg2 {[%emt 0:00:30]} Qe7 {[%emt 0:00:30]} 6. Bd2 {[%emt 0:01:30]} d6 {[%emt 0:10:30]} 7. e3 {[%emt 0:02:30] E00: Catalan Bogo-Indian (3 g3 Bb4+).} e5 {[%emt 0:01:30] Threatens to win with ...exd4.} 8. Nge2 {[%emt 0:10:30]} Bxc3 {[%emt 0:00:30]} 9. Bxc3 {[%emt 0:00:30] [#]} c6 $146 {[%emt 0:04:30]} ({Predecessor:} 9... exd4 10. Nxd4 Ne4 11. Qc2 Re8 12. O-O Nc6 13. Rfe1 Bd7 14. b3 Nxc3 15. Qxc3 a6 {1-0 (45) Cioara,A (2465)-Nestorovic,D (2411) Paracin 2013}) 10. O-O {[%emt 0:02:30]} Bf5 {[%emt 0:09:30] Prevents e4.} (10... e4 $11 {keeps the balance.}) 11. h3 {[%emt 0:11:30]} Bg6 {[%emt 0:13:30]} 12. c5 {[%emt 0:10:30]} dxc5 {[%emt 0:00:30]} 13. dxe5 {[%emt 0:02:30]} Ne4 {[%emt 0:00:30]} 14. f4 {[%emt 0:01:30]} Rd8 {[%emt 0:00:30]} 15. Qc1 {[%emt 0:02:30] [#] aiming for f5.} Nxc3 {[%emt 0:00:30]} 16. Nxc3 {[%emt 0:00:30] Black must now prevent f5.} (16. Qxc3 $5 {[%cal Rf4f5]} Bd3 17. Kf2 $11) 16... Bd3 {[%emt 0:00:30]} 17. Rd1 {[%emt 0:00:30][%cal Oc3d5]} Na6 {[%emt 0:16:30][%cal Bb8a6,Ba6b4,Bb4d5,Bd5f4][%mdl 32]} 18. Ne4 {[%emt 0:02:30]} (18. Nd5 $5 cxd5 19. Rxd3 $11) 18... Bxe4 {[%emt 0:01:30]} 19. Bxe4 {[%emt 0:00:30]} Qe6 {[%emt 0:00:00]} 20. g4 {[%emt 0:03:30]} c4 {[%emt 0:05:00]} 21. Qc2 {[%emt 0:10:30]} Nb4 {[%emt 0:00:30]} 22. Qc3 {[%emt 0:07:47]} ({But not} 22. Bxh7+ Kh8 23. Qa4 Rxd1+ 24. Rxd1 Qh6 25. Qxb4 Qxh3 $11) ({Better is} 22. Rxd8+ $14 Rxd8 23. Rd1 (23. Bxh7+ Kh8 $11)) 22... Nd5 $11 {[%emt 0:03:30] The position is equal.} 23. Qxc4 {[%emt 0:06:15]} Nxf4 {[%emt 0:01:30]} 24. Bxh7+ $1 {[%emt 0:02:04]} Kxh7 {[%emt 0:00:30]} 25. Qxf4 {[%emt 0:00:00]} Rxd1+ {[%emt 0:00:30]} 26. Rxd1 {[%emt 0:00:23][%mdl 4096] Endgame KQR-KQR} Re8 {[%emt 0:00:00]} 27. b3 {[%emt 0:05:09]} Qxe5 {[%emt 0:02:00]} 28. Qxe5 {[%emt 0:01:41]} Rxe5 {[%emt 0:00:30] KR-KR} 29. Rd7 {[%emt 0:00:00]} Rxe3 {[%emt 0:02:30]} 30. Rxb7 {[%emt 0:00:06]} Kg6 {[%emt 0:00:30]} 31. Rxa7 {[%emt 0:03:33]} Rxh3 {[%emt 0:00:30]} 32. Kf2 {[%emt 0:00:57]} Kf6 {[%emt 0:00:00]} 33. Ra6 {[%emt 0:01:21]} Rc3 {[%emt 0:00:00]} 34. Ke2 {[%emt 0:00:00]} Ke5 {[%emt 0:00:30]} 35. Kd2 {[%emt 0:00:29]} Rg3 {[%emt 0:00:30]} 36. Ra7 {[%emt 0:02:40]} Rxg4 {[%emt 0:04:30]} 37. Rxf7 {[%emt 0:00:30]} Rg2+ {[%emt 0:00:30]} 38. Kc3 {[%emt 0:00:11]} Rxa2 {[%emt 0:00:30] And now ...g5 would win.} 39. Rxg7 {[%emt 0:00:00] Weighted Error Value: White=0.08 (flawless) /Black=0.06 (flawless)} 1/2-1/2

[Event "5th Baskent University Open 2022"]
[Site "Ankara"]
[Date "2022.07.05"]
[Round "6.9"]
[White "Akbas, Umut Ata"]
[Black "Altun, Arda"]
[Result "1/2-1/2"]
[ECO "B12"]
[WhiteElo "2298"]
[BlackElo "2213"]
[Annotator "TA"]
[PlyCount "107"]
[EventDate "2022.07.02"]
[EventType "swiss"]
[EventCountry "TUR"]
[SourceTitle "playchess.com"]
[Source "ChessBase"]
[SourceQuality "1"]
[TimeControl "5400+30"]

{[%evp 14,107,59,66,66,15,65,61,87,29,31,35,37,11,8,13,14,12,18,0,0,0,0,0,0,-32,-32,-23,-24,-39,-13,-44,-43,-72,-65,-68,-62,-93,-114,-111,-99,-106,0,0,0,1,118,119,106,132,188,168,135,77,218,127,127,127,127,127,248,125,126,120,121,127,214,121,141,14,74,74,74,74,74,74,74,74,87,-117,-106,-100,-105,-141,74,74,74,44,44,27,29,11,44,12,31,31]} 1. e4 {[%emt 0:01:00]} c6 {[%emt 0:01:00]} 2. d4 {[%emt 0:00:00]} d5 {[%emt 0:00:30]} 3. e5 {[%emt 0:00:00]} Bf5 {[%emt 0:00:30]} 4. Nf3 {[%emt 0:00:30]} e6 {[%emt 0:00:00]} 5. Be2 {[%emt 0:00:00]} c5 {[%emt 0:00:00]} 6. O-O {[%emt 0:00:00]} Nc6 {[%emt 0:00:00]} 7. c3 {[%emt 0:00:00]} Qb6 {[%emt 0:06:00]} 8. dxc5 {[%emt 0:02:00]} Bxc5 {[%emt 0:00:30] B12: Caro-Kann: Advance Variation.} 9. Nbd2 {[%emt 0:03:30]} (9. b4 $14 Be7 10. Qa4) 9... Bg4 {[%emt 0:17:30]} (9... Qc7 $11) 10. Qa4 $14 {[%emt 0:02:30]} Nh6 {[%emt 0:03:30] [#]} 11. Nb3 $146 {[%emt 0:06:30]} (11. h3 $16 Bxf3 12. Nxf3) ({Predecessor:} 11. h3 Bxf3 12. Nxf3 Nf5 13. b4 Be7 14. Bd3 g6 15. g4 Ng7 16. Be3 Qd8 17. b5 {1-0 (33) Zieher,H (2206)-Potrykus,D Germany 2006}) 11... Bxf3 $11 {[%emt 0:00:30]} 12. Bxf3 {[%emt 0:00:00]} Nf5 {[%emt 0:00:30]} 13. Bf4 {[%emt 0:21:00]} O-O {[%emt 0:07:30]} 14. Bg4 {[%emt 0:09:30]} Nce7 {[%emt 0:06:30]} 15. Rad1 {[%emt 0:03:30]} Rac8 {[%emt 0:02:30]} 16. Rd2 {[%emt 0:08:30]} Qc7 {[%emt 0:15:30]} 17. h3 {[%emt 0:12:30]} Bb6 {[%emt 0:01:30]} 18. Bh2 {[%emt 0:04:30]} Qc4 {[%emt 0:09:30]} 19. Qa3 {[%emt 0:00:30]} Rfe8 {[%emt 0:04:30]} ({Resist} 19... Ne3 20. fxe3 Bxe3+ 21. Rdf2 $1 $16) 20. Rfd1 {[%emt 0:03:30]} Red8 {[%emt 0:11:52]} 21. Kh1 {[%emt 0:09:02]} a5 {[%emt 0:02:11]} (21... Rd7 {feels hotter.} 22. Kg1 Rdc7 23. Nc1 Nh6) 22. Nc1 {[%emt 0:04:27]} a4 {[%emt 0:01:36]} 23. Nd3 {[%emt 0:01:19]} d4 {[%emt 0:01:43][%cal Rd4c3]} 24. Rc1 {[%emt 0:04:00]} Ba5 {[%emt 0:01:57][%cal Rd4c3]} (24... dxc3 {keeps more tension.} 25. Rxc3 Qb5 26. Rxc8 Rxc8 27. b3 axb3 28. axb3 Bd4) 25. cxd4 {[%emt 0:01:34]} Bxd2 {[%emt 0:00:32]} ({But not} 25... Qxd4 $6 26. Rxc8 Nxc8 27. Rd1 $11) 26. Rxc4 {[%emt 0:00:33]} Rxc4 {[%emt 0:00:03]} 27. Bf4 {[%emt 0:00:24]} Rcxd4 {[%emt 0:01:03]} (27... Bxf4 $17 28. Nxf4 Rcxd4) 28. Bxd2 {[%emt 0:00:30] Strongly threatening Be2.} Rxd3 {[%emt 0:00:00]} 29. Bc3 {[%emt 0:00:00]} b5 {[%emt 0:01:01]} (29... R3d7 $11) 30. Be2 $1 $16 {[%emt 0:00:12]} R3d7 {[%emt 0:01:36]} 31. Bxb5 {[%emt 0:00:35]} Rb7 {[%emt 0:01:12]} (31... Ra7 $16) 32. Qxa4 $18 {[%emt 0:00:30]} Nd5 {[%emt 0:00:30]} 33. Qa5 {[%emt 0:01:08]} (33. Kh2 $142) 33... Rc7 {[%emt 0:01:00]} (33... Rbb8 $16 {keeps fighting.} 34. Bc6 Nfe7) 34. Bc6 {[%emt 0:02:22] This bishop pair is nice.} ({Better is} 34. Bb4 $18) 34... Nfe7 $16 {[%emt 0:00:30]} 35. Bxd5 {[%emt 0:00:30]} Nxd5 {[%emt 0:00:30]} 36. Bd4 {[%emt 0:00:00]} h6 {[%emt 0:00:39]} (36... Rcc8 $16 {was worth a try.}) 37. Kh2 {[%emt 0:00:44]} (37. b4 $1 $18) 37... Rb8 {[%emt 0:00:30]} 38. a3 {[%emt 0:00:30] Against Rb4} Rc4 {[%emt 0:00:30] Inhibits Qa4.} 39. Qd2 {[%emt 0:01:18]} Rd8 {[%emt 0:01:23]} (39... Ra8 $16 40. Qd3 Rca4) 40. Ba7 {[%emt 0:00:44]} (40. b3 $18 Rcc8 41. a4) 40... Rdc8 {[%emt 0:00:41]} 41. b4 {[%emt 0:00:33]} ({White should play} 41. Qd3 $16) 41... Rc3 {[%emt 0:00:04]} (41... Ra8 $1 $11 42. Qe2 Rc3) 42. b5 $1 {[%emt 0:00:58][%cal Bb4b5,Bb5b6][%mdl 32] Black must now prevent b6.} Rxa3 {[%emt 0:00:26]} 43. b6 {[%emt 0:00:04]} Rb3 {[%emt 0:00:30] [#]} 44. Qa2 $1 {[%emt 0:00:00]} Rb4 {[%emt 0:00:35]} 45. Qa6 {[%emt 0:00:24]} Rc6 {[%emt 0:00:30]} 46. Qa5 $2 {[%emt 0:00:03] [#]} (46. Qb7 $16 {keeps the pressure on.} Rcxb6 47. Bxb6 Rxb6 48. Qc8+ Kh7 49. Qd7) 46... g6 $1 $17 {[%emt 0:01:11]} 47. Qa3 {[%emt 0:01:06]} Kg7 {[%emt 0:00:28]} 48. Qf3 {[%emt 0:00:34]} Rbxb6 $2 {[%emt 0:00:39]} (48... Rc2 $17 49. Kg1 Rbb2) 49. Bxb6 $16 {[%emt 0:00:30]} Rxb6 $17 {[%emt 0:00:30] KQ-KRN} 50. Qa3 {[%emt 0:00:00]} Rb4 {[%emt 0:00:02]} 51. Qa7 {[%emt 0:00:12]} Re4 {[%emt 0:00:00]} 52. Qa1 {[%emt 0:00:35]} Rb4 {[%emt 0:00:27]} 53. Qe1 {[%emt 0:00:57]} h5 {[%emt 0:00:42]} 54. Qd2 {[%emt 0:00:58] White really could win this.  Weighted Error Value: White=0.28 (precise) /Black=0.30} 1/2-1/2